bitfinex/quotes_ETHUSD_20241129
["timestamp","ask_amount","ask_price","bid_price","bid_amount"]
[1732905551667,2.78714,3587.9,3587.3,0.08712861]
[1732905551899,2.78729,3587.8,3587.4,0.08712861]
[1732905552174,2.78729,3587.8,3587.5,0.08712861]
[1732905552467,2.78729,3587.8,3587.2,4.233271]
[1732905552630,2.78729,3587.8,3587.3,0.0871325]
[1732905552829,2.78729,3587.8,3587.4,0.0871325]
[1732905553071,2.78729,3587.8,3587.5,0.0871325]
[1732905553268,2.78729,3587.8,3587.3,0.58478975]
[1732905553770,0.7979,3588.2,3587.3,0.58478975]
[1732905553771,0.7979,3588.2,3587.4,0.08713329]
[1732905554074,0.7979,3588.2,3587.2,3.59498]
[1732905554075,2.78731,3587.7,3587.5,0.08713329]
[1732905554277,2.78731,3587.7,3587.2,0.8073]
[1732905554482,2.79799807,3588.2,3586.7,2.78801]
[1732905554689,2.8865,3588.8,3586.5,2.7882]
[1732905554690,2.78762,3587.3,3586.8,0.8279]
[1732905554978,2.78763,3587.3,3586.8,0.91504198]
[1732905555150,2.78763,3587.3,3586.9,0.08714198]
[1732905555477,2.78763,3587.3,3587.0,0.08714198]
[1732905555631,2.78763,3587.3,3586.8,0.8279]
[1732905555832,2.78763,3587.3,3586.9,0.08714419]
[1732905556032,2.78763,3587.3,3587.0,0.08714419]
[1732905556263,2.78763,3587.3,3586.8,1.468312]
[1732905556449,2.78763,3587.3,3586.9,0.08714355]
[1732905556747,2.78763,3587.3,3586.8,1.468312]
[1732905556943,2.78763,3587.3,3586.9,0.08714325]
[1732905557279,2.78768,3587.3,3586.8,0.8279]
[1732905557676,2.78737,3587.6,3586.8,0.8279]
[1732905557884,2.78792,3586.9,3586.8,0.8279]
[1732905558239,2.78785,3587.0,3586.5,0.55]
[1732905558479,2.78785,3587.0,3586.6,0.08715023]
[1732905558634,2.78785,3587.0,3586.5,0.55]
[1732905558837,2.78785,3587.0,3586.6,0.08715051]
[1732905559029,2.78785,3587.0,3586.5,0.55]
[1732905559463,2.78785,3587.0,3586.5,0.95946]
[1732905561859,2.78785,3587.0,3586.5,0.40946]
[1732905562899,2.78778,3587.1,3586.5,3.19768]
[1732905563057,2.78752,3587.5,3586.9,2.78792]
[1732905563384,0.7893,3588.0,3587.0,2.78784]
[1732905563684,2.78744,3587.6,3586.8,3.55187]
[1732905563891,2.78744,3587.6,3586.9,0.355187]
[1732905564092,2.78745,3587.5,3586.9,0.355187]
[1732905564476,2.78779,3587.1,3586.8,0.7639]
[1732905564644,2.78779,3587.1,3586.6,0.7594]
[1732905565063,2.78792,3586.9,3586.6,0.7594]
[1732905568887,2.788,3586.8,3586.6,0.7594]
[1732905569093,2.78807,3586.7,3586.2,0.8127]
[1732905569407,2.78816,3586.6,3586.2,0.8127]
[1732905569751,2.78835,3586.4,3585.9,0.8283]
[1732905569988,2.78839,3586.3,3585.9,0.8283]
[1732905570352,2.78871,3585.9,3585.6,0.8283]
[1732905571878,2.78874,3585.9,3585.6,0.8283]
[1732905572198,2.78899,3585.6,3585.3,0.8005]
[1732905572552,2.78901,3585.5,3585.3,0.8005]
[1732905572751,2.78901,3585.5,3584.9,3.58995]
[1732905572990,2.78901,3585.5,3585.0,0.72512911]
[1732905573177,2.78901,3585.5,3585.1,0.08718511]
[1732905573363,2.78901,3585.5,3585.0,0.637944]
[1732905573557,2.78887,3585.7,3585.1,0.08718539]
[1732905573792,2.78887,3585.7,3585.0,3.427324]
[1732905574100,2.78887,3585.7,3585.1,0.08718569]
[1732905574101,2.78894,3585.6,3585.1,0.08718569]
[1732905574401,2.78894,3585.6,3585.0,3.427324]
[1732905574767,2.78894,3585.6,3585.1,0.08718583]
[1732905574997,2.78894,3585.6,3585.0,3.427324]
[1732905575210,2.78894,3585.6,3585.1,0.08718582]
[1732905575357,2.78894,3585.6,3585.2,0.08718582]
[1732905575557,2.78894,3585.6,3585.0,3.427324]
[1732905575758,2.78894,3585.6,3585.1,0.08718602]
[1732905575994,2.78894,3585.6,3585.2,0.08718602]
[1732905576213,2.78894,3585.6,3585.0,3.427324]
[1732905576351,0.7908,3586.0,3584.9,0.8005]
[1732905576352,2.79799807,3585.7,3585.1,0.08718562]
[1732905576556,2.79799807,3585.7,3584.9,0.8005]
[1732905576557,2.78921,3585.3,3584.9,0.8005]
[1732905577769,2.78904,3585.5,3584.9,0.8005]
[1732905577974,2.78904,3585.5,3584.9,3.58995]
[1732905578171,2.78909,3585.4,3584.9,3.58995]
[1732905578874,2.78899,3585.6,3585.0,0.08719217]
[1732905579072,2.78905,3585.5,3584.9,3.58995]
[1732905579300,2.78905,3585.5,3585.0,0.0871922]
[1732905579514,2.78905,3585.5,3584.9,3.58995]
[1732905579721,2.78905,3585.5,3585.0,0.08719218]
[1732905579860,2.78905,3585.5,3584.9,3.58995]
[1732905580059,2.78905,3585.5,3585.0,0.08719221]
[1732905580306,2.78905,3585.5,3584.9,3.58995]
[1732905580475,2.78905,3585.5,3585.0,0.08719222]
[1732905580677,0.7908,3586.0,3585.1,2.78925]
[1732905580678,2.78881,3585.8,3585.1,2.78925]
[1732905580984,5.58623807,3586.5,3585.6,2.78888]
[1732905580985,0.8157,3586.3,3585.6,2.78888]
[1732905581169,3.0,3586.2,3585.3,0.8144]
[1732905581376,3.0,3586.2,3585.5,2.789]
[1732905581570,3.0,3586.2,3585.3,3.60356]
[1732905581571,0.7878,3585.9,3585.3,0.8144]
[1732905581793,2.78907,3585.5,3585.4,0.08717893]
[1732905581956,2.78907,3585.5,3585.0,3.6092]
[1732905582307,2.78905,3585.5,3585.1,0.08718599]
[1732905582599,2.78905,3585.5,3585.0,0.8198]
[1732905582899,3.7878,3585.9,3585.4,2.78908]
[1732905583105,3.0,3585.9,3585.4,2.78908]
[1732905583407,3.0,3585.9,3585.5,0.08717977]
[1732905583714,3.0,3585.9,3585.4,2.78908]
[1732905583906,3.0,3586.1,3585.6,2.78888]
[1732905584058,3.0,3586.1,3585.7,2.78884]
[1732905584259,5.78867,3586.0,3585.2,2.78917]
[1732905584501,5.78867,3586.0,3585.4,2.78906]
[1732905584703,5.78867,3586.0,3585.5,0.08717867]
[1732905584912,5.78867,3586.0,3585.4,2.78906]
[1732905585205,5.78867,3586.0,3585.5,0.08717884]
[1732905585410,5.78867,3586.0,3585.4,2.78906]
[1732905585703,2.78874,3585.9,3585.5,0.08717958]
[1732905585907,3.0,3586.1,3585.4,2.78907]
[1732905586058,3.0,3586.1,3585.5,0.08718019]
[1732905586261,3.0,3586.1,3585.6,0.08718019]
[1732905586500,3.0,3586.1,3585.4,2.78907]
[1732905586700,2.78867,3586.0,3585.5,0.08717875]
[1732905586901,2.78874,3585.9,3585.6,0.08717875]
[1732905587061,2.78885,3585.7,3585.5,0.08717875]
[1732905587257,2.78893,3585.6,3584.9,2.78942]
[1732905587504,3.0,3585.8,3585.0,0.08718606]
[1732905587707,4.46442007,3585.9,3584.8,0.8322]
[1732905587708,2.78916,3585.3,3585.1,0.08718606]
[1732905587889,2.78916,3585.3,3585.2,0.08718606]
[1732905588612,2.78906,3585.5,3585.2,0.08718606]
[1732905588768,2.78906,3585.5,3584.8,3.62174]
[1732905588989,2.7891,3585.4,3584.9,0.08719141]
[1732905589212,2.7888,3585.8,3585.0,0.08719141]
[1732905589407,3.8087,3585.9,3585.1,0.08719141]
[1732905589621,3.8087,3585.9,3584.3,0.02789392]
[1732905589622,0.8248,3586.2,3585.7,2.7888]
[1732905589822,5.78847,3586.2,3585.7,2.7888]
[1732905590021,3.0,3586.3,3585.8,0.8325]
[1732905590503,2.78843,3586.3,3585.8,0.8325]
[1732905590677,2.78846,3586.2,3585.8,0.8325]
[1732905590889,5.78855,3586.1,3585.5,3.62144]
[1732905591097,5.78855,3586.1,3585.6,0.08717626]
[1732905591307,5.78855,3586.1,3585.7,0.08717626]
[1732905591503,5.78855,3586.1,3585.5,3.62144]
[1732905591712,5.78855,3586.1,3585.6,0.0871761]
[1732905591895,5.78855,3586.1,3585.7,0.0871761]
[1732905592096,5.78855,3586.1,3585.5,3.62144]
[1732905592301,5.78855,3586.1,3585.6,0.08717566]
[1732905592498,5.78855,3586.1,3585.7,0.08717566]
[1732905592691,5.78855,3586.1,3585.8,0.08717566]
[1732905592924,5.78855,3586.1,3585.5,3.62144]
[1732905593226,5.78855,3586.1,3585.6,0.08717566]
[1732905593612,5.78855,3586.1,3585.7,0.08717566]
[1732905593824,5.78855,3586.1,3585.8,0.08717566]
[1732905593988,0.7873,3586.0,3585.2,2.78924]
[1732905594189,0.7873,3586.0,3585.3,0.08717706]
[1732905594415,2.78886,3585.7,3585.4,0.08717706]
[1732905594634,2.78886,3585.7,3585.5,0.08717706]
[1732905594841,2.78886,3585.7,3585.6,0.08717706]
[1732905600030,2.78886,3585.7,3585.2,2.78921]
[1732905600237,2.78886,3585.7,3585.3,0.08718111]
[1732905600408,2.78886,3585.7,3585.4,0.08718111]
[1732905600595,2.78886,3585.7,3585.5,0.08718111]
[1732905600792,2.78886,3585.7,3585.6,0.08718111]
[1732905601536,3.425349,3585.7,3585.6,0.08718111]
[1732905602218,3.425349,3585.7,3585.0,2.78936]
[1732905602421,2.78886,3585.7,3585.1,0.08718486]
[1732905602620,2.78886,3585.7,3585.2,0.08718486]
[1732905602796,2.78886,3585.7,3585.3,0.08718486]
[1732905603001,2.78886,3585.7,3585.4,0.08718486]
[1732905603208,2.78886,3585.7,3585.5,0.08718486]
[1732905603435,2.78886,3585.7,3585.6,0.08718486]
[1732905604353,3.0,3585.8,3585.6,0.08718486]
[1732905604498,2.78816,3586.6,3585.7,0.08718486]
[1732905604499,3.0,3585.9,3585.7,0.08718486]
[1732905604691,5.78861,3586.1,3585.8,0.08718486]
[1732905604936,5.78861,3586.1,3585.6,0.7763]
[1732905605241,2.7885,3586.2,3585.6,0.7763]
[1732905605242,3.0,3585.8,3585.7,0.08718294]
[1732905606322,6.367646,3585.8,3584.4,2.7898]
[1732905606632,2.78938,3585.1,3584.5,0.08719474]
[1732905606840,2.78938,3585.1,3584.6,0.08719474]
[1732905607046,2.78938,3585.1,3584.7,0.08719474]
[1732905607197,2.78938,3585.1,3584.5,2.78978]
[1732905607198,2.78938,3585.1,3584.8,0.08719474]
[1732905607531,2.78938,3585.1,3584.9,0.08719474]
[1732905607738,2.78938,3585.1,3585.0,0.08719474]
[1732905608369,2.7895,3584.9,3584.3,3.56621]
[1732905608494,2.7894,3585.0,3584.4,2.78986]
[1732905609134,2.7894,3585.0,3584.4,2.87705666]
[1732905609496,2.78938,3585.1,3584.4,2.78986]
[1732905609711,2.78948,3584.9,3584.4,2.78986]
[1732905609906,2.78948,3584.9,3584.7,0.43523073]
[1732905610147,2.78948,3584.9,3584.8,0.08719905]
[1732905611150,2.78938,3585.1,3584.8,0.08719905]
[1732905611453,2.7894,3585.0,3584.9,0.08719905]
[1732905612568,2.78971,3584.6,3584.3,0.43523073]
[1732905612877,2.78977,3584.6,3584.4,0.08720876]
[1732905613025,2.78977,3584.6,3584.5,0.08720876]
[1732905613228,2.78977,3584.6,3584.2,0.1579334]
[1732905613229,2.78981,3584.5,3584.2,0.1579334]
[1732905613427,2.78978,3584.5,3584.2,0.59291539]
[1732905613686,2.78978,3584.5,3584.2,0.1579334]
[1732905613687,9.39953807,3584.3,3584.2,0.1579334]
[1732905620604,5.78994,3584.3,3584.2,0.1579334]
[1732905621852,2.78994,3584.3,3584.2,0.1579334]
[1732905622863,2.78983,3584.5,3584.2,0.1579334]
[1732905624214,2.78966,3584.7,3584.2,0.1579334]
[1732905624215,2.78987,3584.4,3584.2,0.1579334]
[1732905625005,5.78977,3584.6,3584.2,0.1579334]
[1732905625368,2.79799807,3585.5,3584.4,2.78986]
[1732905625609,2.78939,3585.1,3584.5,2.78978]
[1732905626374,2.79799807,3585.5,3584.5,2.78978]
[1732905626375,2.78929,3585.2,3584.8,0.7606]
[1732905626784,2.78934,3585.1,3584.8,0.7606]
[1732905628003,2.78941,3585.0,3584.8,0.7606]
[1732905628185,2.78975,3584.6,3584.4,0.8136]
[1732905628513,2.78991,3584.4,3584.2,0.1579334]
[1732905629315,2.78975,3584.6,3584.2,0.1579334]
[1732905629513,0.8051,3585.0,3584.2,0.1579334]
[1732905629514,2.78979,3584.5,3584.2,0.1579334]
[1732905630204,8.58793807,3584.3,3584.2,0.1579334]
[1732905632420,8.63677164,3584.3,3584.2,0.1579334]
[1732905634622,9.45947164,3584.3,3584.2,0.1579334]
[1732905646815,13.45947164,3584.3,3584.2,0.1579334]
[1732905648036,2.79111,3582.8,3582.7,5.0]
[1732905648334,2.83531255,3582.8,3582.7,5.0]
[1732905650999,0.04420255,3582.8,3582.7,5.8179]
[1732905651195,0.04420255,3582.8,3582.7,6.39969]
[1732905651391,0.04420255,3582.8,3582.7,9.19088]
[1732905651603,2.79047,3583.7,3583.0,2.79091]
[1732905651810,2.79047,3583.7,3583.1,0.88143464]
[1732905652039,0.04286526,3583.6,3583.1,0.7942]
[1732905652347,2.79086,3583.2,3582.8,0.8159]
[1732905652496,2.79089,3583.1,3582.8,0.8159]
[1732905653008,2.79086,3583.2,3582.8,0.8159]
[1732905654351,0.04287929,3583.1,3582.8,0.8159]
[1732905654718,2.79074,3583.3,3582.8,0.8159]
[1732905654958,0.04285031,3583.0,3582.9,0.92761107]
[1732905655163,2.79058,3583.5,3582.9,0.92761107]
[1732905655321,0.04285031,3583.0,3582.9,3.71864107]
[1732905655661,3.0,3583.6,3583.0,3.6102]
[1732905655867,3.0,3583.6,3583.1,0.82884382]
[1732905656155,0.04285096,3583.5,3583.1,0.74160772]
[1732905657417,0.04285096,3583.5,3583.2,0.08723247]
[1732905657616,0.04285096,3583.5,3583.1,3.53246772]
[1732905657855,0.04285096,3583.5,3583.2,2.87797309]
[1732905658018,0.04285096,3583.5,3583.3,1.54757717]
[1732905658367,2.79033,3583.8,3583.4,0.08722949]
[1732905658549,2.79033,3583.8,3583.3,4.25105408]
[1732905658939,2.79033,3583.8,3583.4,0.08722951]
[1732905659161,3.0,3583.9,3583.4,2.87783951]
[1732905659463,2.79799807,3584.5,3583.6,0.8193]
[1732905659649,2.79017,3584.1,3583.6,0.8193]
[1732905659967,5.57996,3584.3,3583.6,3.60978]
[1732905660123,2.78996,3584.3,3583.7,0.08722179]
[1732905660462,2.78996,3584.3,3583.6,0.8193]
[1732905660463,2.79799807,3584.1,3583.6,0.8193]
[1732905660669,2.79799807,3584.1,3583.7,0.08722375]
[1732905660822,5.58811807,3584.1,3583.6,1.29504976]
[1732905661026,2.79799807,3584.1,3583.7,0.08722324]
[1732905661224,2.79799807,3584.1,3583.7,2.79033]
[1732905661571,3.0,3584.4,3583.6,1.29504976]
[1732905661572,3.0,3584.4,3584.0,0.7505]
[1732905662123,2.78966,3584.7,3584.1,0.354083]
[1732905662552,5.58747807,3584.9,3584.1,0.354083]
[1732905662764,2.78956,3584.8,3584.2,2.78996]
[1732905662965,2.78956,3584.8,3584.3,0.8209]
[1732905663140,2.78956,3584.8,3584.3,3.61084]
[1732905663338,5.58717807,3585.3,3584.6,3.61059]
[1732905663523,2.78909,3585.4,3584.6,2.78966]
[1732905663718,2.78909,3585.4,3584.7,3.61053]
[1732905664024,2.78909,3585.4,3584.8,2.78948]
[1732905664223,2.78901,3585.5,3584.9,2.78946]
[1732905664539,2.78848,3586.2,3585.1,2.78932]
[1732905664718,2.78866,3586.0,3585.2,0.7516]
[1732905664920,0.8062,3588.2,3586.0,0.7999]
[1732905665175,0.03759593,3585.9,3585.5,2.78899]
[1732905665471,0.03759593,3585.9,3585.4,0.7999]
[1732905665472,0.03759593,3585.9,3585.8,2.78877]
[1732905665776,0.07251332,3585.9,3585.4,3.58898]
[1732905665929,0.07251332,3585.9,3585.5,3.58238999]
[1732905666265,0.07251332,3585.9,3585.5,0.358898]
[1732905666464,0.07251332,3585.9,3585.7,2.78884]
[1732905666821,0.07251332,3585.9,3585.5,2.78899]
[1732905667023,0.03759593,3585.9,3585.7,2.78883]
[1732905667258,0.03504897,3585.8,3585.7,2.78883]
[1732905667826,0.03759593,3585.9,3585.8,2.78877]
[1732905668126,2.82629593,3585.9,3585.4,0.7999]
[1732905668471,0.03759593,3585.9,3585.3,2.78914]
[1732905668679,0.0341637,3585.8,3585.3,2.78914]
[1732905669178,0.0341637,3585.8,3585.4,2.78907]
[1732905669680,0.0341637,3585.8,3585.5,2.78896]
[1732905669979,0.0341637,3585.8,3585.6,0.557798]
[1732905670180,0.0341637,3585.8,3585.5,2.78896]
[1732905670539,0.0341637,3585.8,3585.7,2.78885]
[1732905670740,0.0341637,3585.8,3585.7,4.14753345]
[1732905671086,0.03759593,3585.9,3585.8,3.33877]
[1732905672175,2.78754,3587.4,3586.0,0.55]
[1732905672479,2.78761,3587.3,3586.5,2.78817]
[1732905672684,2.82066156,3587.3,3586.5,2.78817]
[1732905672883,2.82067156,3587.3,3586.4,2.78831]
[1732905673099,2.82067156,3587.3,3586.5,2.78821]
[1732905673443,2.82067156,3587.3,3586.4,2.78831]
[1732905673643,2.82067156,3587.3,3586.5,3.149821]
[1732905674453,2.78778,3587.1,3586.5,0.361651]
[1732905674658,2.78778,3587.1,3586.3,2.78833]
[1732905674860,2.82066156,3587.3,3586.2,0.8282]
[1732905674861,0.0329105,3587.0,3586.4,2.78829]
[1732905675093,2.78761,3587.3,3586.4,2.78829]
[1732905675386,0.03213968,3586.9,3586.4,2.78829]
[1732905675586,2.78761,3587.3,3586.4,2.78829]
[1732905675783,0.03209805,3586.8,3586.4,3.72814462]
[1732905676084,2.78785,3587.0,3586.4,0.93985462]
[1732905676384,2.7878,3587.1,3586.3,2.78834]
[1732905676592,0.03214541,3586.9,3586.4,2.7883]
[1732905676786,0.03216628,3587.0,3586.4,2.7883]
[1732905676986,0.03214131,3586.8,3586.2,3.61664]
[1732905677190,0.03218029,3586.9,3586.3,0.71508581]
[1732905677489,0.03208556,3586.7,3586.3,3.50344581]
[1732905677647,0.03213293,3586.8,3586.3,3.50344581]
[1732905677849,2.78777,3587.1,3586.3,3.50344581]
[1732905678369,0.03222765,3587.0,3586.4,0.25804315]
[1732905678569,0.03222765,3587.0,3586.3,3.50344581]
[1732905679288,0.03222765,3587.0,3586.4,0.7315784]
[1732905679590,0.03222765,3587.0,3586.4,3.5198784]
[1732905681893,2.82007765,3587.0,3586.4,0.7315784]
[1732905682193,2.82007765,3587.0,3586.3,3.3043922]
[1732905682374,2.78815,3586.6,3586.3,0.5160222]
[1732905682546,2.78846,3586.2,3585.4,0.8254]
[1732905682745,2.78815,3586.6,3585.4,1.34156064]
[1732905682746,2.78868,3586.0,3585.4,1.34156064]
[1732905682948,2.78871,3585.9,3585.4,1.34156064]
[1732905683175,0.0320815,3585.9,3585.4,0.8254]
[1732905683379,0.0320815,3585.9,3585.5,2.789]
[1732905683600,0.0320815,3585.9,3585.5,3.30516064]
[1732905683793,2.78851,3586.2,3585.5,2.789]
[1732905684012,0.03196995,3585.8,3585.6,2.78891]
[1732905684161,2.78839,3586.3,3585.6,0.51645052]
[1732905684366,0.03192256,3585.7,3585.6,0.51645052]
[1732905684673,2.78839,3586.3,3585.6,3.30537052]
[1732905684874,2.78839,3586.3,3585.6,0.69199005]
[1732905685075,2.78825,3586.5,3585.7,0.51677571]
[1732905685301,2.7884,3586.3,3585.8,0.51677571]
[1732905685511,2.78854,3586.1,3585.7,0.51677571]
[1732905685808,0.03202115,3586.0,3585.5,0.51677571]
[1732905686102,0.03202115,3586.0,3585.4,0.8254]
[1732905686103,2.78875,3585.9,3585.6,0.51677571]
[1732905686273,2.78878,3585.8,3585.7,0.51677571]
[1732905686478,2.82071212,3585.8,3585.5,0.51677571]
[1732905686804,0.03193212,3585.8,3585.6,0.51677571]
[1732905687003,0.03193212,3585.8,3585.7,0.51677571]
[1732905687169,0.03193212,3585.8,3585.5,0.51677571]
[1732905687365,0.03193212,3585.8,3585.6,0.51677571]
[1732905687581,0.03193212,3585.8,3585.7,0.51677571]
[1732905688397,3.8077,3586.6,3585.7,0.51677571]
[1732905688398,3.0,3586.3,3585.7,0.51677571]
[1732905688599,0.03291997,3585.8,3585.5,2.78894]
[1732905688903,2.78859,3586.1,3585.6,0.51847085]
[1732905689080,2.78859,3586.1,3585.4,3.61446]
[1732905689264,2.78863,3586.0,3585.5,0.5184819]
[1732905689470,2.78863,3586.0,3585.6,0.3311679]
[1732905689813,0.03184007,3585.9,3585.4,3.61446]
[1732905690305,0.03184007,3585.9,3585.7,2.7888]
[1732905690480,0.03184007,3585.9,3585.8,2.87594002]
[1732905690682,2.78833,3586.4,3585.8,2.87594002]
[1732905690879,2.78833,3586.4,3585.9,0.08717002]
[1732905691093,0.03185486,3586.3,3585.6,2.78887]
[1732905691297,0.03185486,3586.3,3585.7,2.87596323]
[1732905691520,0.03185486,3586.3,3585.8,0.08716323]
[1732905691725,0.03185486,3586.3,3585.9,2.87584323]
[1732905692027,2.788,3586.8,3586.1,0.796]
[1732905692028,2.78804,3586.8,3586.1,0.796]
[1732905692327,2.78689,3588.3,3586.4,2.78827]
[1732905692328,2.78768,3587.2,3586.4,2.78827]
[1732905692625,2.78791,3587.0,3586.5,0.08716323]
[1732905692823,2.81794445,3587.1,3586.6,0.08716323]
[1732905693023,2.78768,3587.2,3586.6,0.08716323]
[1732905693024,0.02881385,3586.9,3586.6,0.08716323]
[1732905693332,2.81672121,3587.0,3586.7,0.08716323]
[1732905693635,2.81672121,3587.0,3586.8,0.08716323]
[1732905693801,2.81672121,3587.0,3586.4,2.78824]
[1732905693980,2.81672121,3587.0,3586.5,0.08714777]
[1732905694332,0.02886121,3587.0,3586.6,0.08714777]
[1732905694532,2.78768,3587.2,3586.7,0.08714777]
[1732905694866,2.78768,3587.2,3586.4,2.78824]
[1732905694867,2.78784,3587.0,3586.8,0.08714777]
[1732905695034,2.78784,3587.0,3586.4,2.78824]
[1732905695035,2.78784,3587.0,3586.9,0.08714777]
[1732905695238,3.426682,3587.0,3586.9,0.08714777]
[1732905695527,2.78816,3586.6,3586.1,0.796]
[1732905695687,2.78816,3586.6,3586.2,0.08715587]
[1732905695894,2.78816,3586.6,3586.3,0.08715587]
[1732905696111,2.78824,3586.5,3586.4,0.08715587]
[1732905696698,2.78803,3586.8,3586.4,0.08715587]
[1732905696898,2.78816,3586.6,3586.5,0.08715587]
[1732905697348,2.78775,3587.2,3586.6,0.8075]
[1732905697503,2.78775,3587.2,3586.7,0.60817666]
[1732905697504,2.78786,3587.0,3586.7,0.60817666]
[1732905697704,2.78786,3587.0,3586.8,0.60817666]
[1732905697914,2.78786,3587.0,3586.9,0.60817666]
[1732905698808,2.78786,3587.0,3584.7,0.8241]
[1732905698809,0.5984,3585.9,3584.7,0.8241]
[1732905699044,2.78914,3585.4,3584.7,0.8241]
[1732905699416,0.02920015,3585.3,3584.7,0.8241]
[1732905699618,0.02920015,3585.3,3584.7,3.61373]
[1732905699968,2.78891,3585.7,3584.8,2.78949]
[1732905700142,0.02915277,3585.2,3584.9,0.361359]
[1732905700450,2.78899,3585.6,3584.9,0.361359]
[1732905700602,0.0291054,3585.1,3584.9,0.361359]
[1732905700807,2.7891,3585.4,3584.9,0.361359]
[1732905701007,0.02905802,3585.0,3584.9,0.361359]
[1732905701256,2.7891,3585.4,3584.9,0.361359]
[1732905701660,0.5984,3585.9,3584.7,0.8241]
[1732905701811,2.78926,3585.2,3584.7,0.8241]
[1732905702303,0.0290412,3585.1,3584.7,0.8241]
[1732905702722,2.8183612,3585.1,3584.7,0.8241]
[1732905702918,2.8183912,3585.1,3584.7,0.8241]
[1732905703224,2.78966,3584.7,3584.2,0.7583]
[1732905703419,2.78966,3584.7,3584.2,1.113153]
[1732905703627,2.78983,3584.5,3584.2,0.354853]
[1732905703867,2.78983,3584.5,3583.9,0.7583]
[1732905704045,2.7901,3584.1,3583.4,0.7583]
[1732905704340,2.81829122,3584.0,3583.4,0.7583]
[1732905704956,0.02812122,3584.0,3583.4,3.54894]
[1732905705433,0.7793,3584.3,3583.4,3.54894]
[1732905705728,3.56927,3584.3,3583.5,0.91377281]
[1732905706072,2.79016,3584.1,3583.5,0.91377281]
[1732905706291,2.79019,3584.0,3583.5,0.91377281]
[1732905706443,2.81848228,3584.0,3583.4,3.54893]
[1732905706967,2.79026,3583.9,3583.4,0.7573]
[1732905707445,0.02819747,3583.8,3583.4,0.7573]
[1732905709406,0.02819747,3583.8,3582.4,2.79799807]
[1732905709562,0.02819747,3583.8,3582.8,0.5]
[1732905709932,2.79029,3583.9,3582.8,0.5]
[1732905709933,2.79072,3583.3,3582.8,0.5]
[1732905710088,0.7742,3583.6,3582.8,0.5]
[1732905710299,0.7742,3583.6,3582.2,0.8168]
[1732905710300,2.79093,3583.1,3582.3,2.79145]
[1732905710596,2.81883052,3583.0,3582.2,2.79156]
[1732905710775,0.02583005,3583.0,3582.8,2.79799807]
[1732905710955,0.02583005,3583.0,3582.9,2.81893233]
[1732905711168,3.0,3585.1,3582.9,2.81893233]
[1732905711169,2.78972,3584.6,3583.7,2.79034]
[1732905711343,2.78972,3584.6,3583.8,2.79031]
[1732905711678,2.7898,3584.5,3583.8,2.79031]
[1732905712007,2.78965,3584.7,3583.7,2.79041]
[1732905712289,2.78932,3585.1,3584.4,2.78985]
[1732905712494,2.78925,3585.2,3584.2,2.78996]
[1732905712789,2.78925,3585.2,3584.3,2.78994]
[1732905712790,2.78941,3585.0,3584.3,2.78994]
[1732905712942,2.78941,3585.0,3584.2,0.56075205]
[1732905713149,2.78941,3585.0,3584.2,3.35070205]
[1732905713979,2.78947,3584.9,3584.2,3.35070205]
[1732905714385,2.78964,3584.7,3584.0,0.7755]
[1732905714584,2.78948,3584.9,3584.1,0.55]
[1732905715208,2.78948,3584.9,3584.2,2.78996]
[1732905715421,2.78932,3585.1,3584.3,2.78992]
[1732905715766,2.78932,3585.1,3584.4,2.78985]
[1732905716285,2.7894,3585.0,3584.4,2.78985]
[1732905717502,2.78901,3585.5,3584.8,2.78947]
[1732905717903,0.06083851,3585.4,3584.9,2.78946]
[1732905718214,2.7888,3585.8,3585.3,0.8245]
[1732905718527,0.27888,3585.7,3585.3,0.8245]
[1732905719123,0.04599554,3585.6,3585.3,0.8245]
[1732905719282,2.78893,3585.6,3585.3,0.8245]
[1732905719791,2.7888,3585.8,3585.3,0.8245]
[1732905720186,2.78887,3585.7,3585.3,0.8245]
[1732905720411,2.7888,3585.8,3585.3,0.8245]
[1732905720738,2.78876,3585.9,3585.3,0.8245]
[1732905720935,2.78854,3586.1,3585.3,0.8245]
[1732905721299,2.789,3585.6,3585.3,0.8245]
[1732905721450,2.78881,3585.8,3585.3,0.8245]
[1732905721662,2.78881,3585.8,3585.0,2.78939]
[1732905721956,2.78946,3585.0,3584.6,0.7572]
[1732905724616,2.78951,3584.9,3584.3,2.78989]
[1732905724817,2.78951,3584.9,3584.3,3.347888]
[1732905725015,2.78956,3584.8,3584.3,3.347888]
[1732905725236,2.78932,3585.1,3584.3,3.347888]
[1732905725529,2.78945,3585.0,3584.4,2.78986]
[1732905725709,2.78945,3585.0,3584.5,0.8235]
[1732905725909,2.78932,3585.1,3584.5,1.2406358]
[1732905726110,2.78941,3585.0,3584.5,1.2406358]
[1732905726379,2.78932,3585.1,3584.5,1.2406358]
[1732905726660,2.7894,3585.0,3584.5,1.2406358]
[1732905726965,0.8245,3585.2,3583.6,0.8235]
[1732905727114,0.8245,3585.1,3583.6,0.8235]
[1732905727317,2.79011,3584.1,3583.6,0.8235]
[1732905727512,2.79019,3584.0,3583.7,0.361408]
[1732905727709,3.0,3585.3,3583.6,0.8235]
[1732905727710,2.78984,3584.5,3583.6,0.8235]
[1732905727943,2.79019,3584.0,3583.6,0.8235]
[1732905728650,2.7901,3584.1,3583.6,0.8235]
[1732905729064,2.7901,3584.1,3583.6,3.61398]
[1732905729761,2.7901,3584.1,3583.6,0.8235]
[1732905730078,2.7901,3584.1,3583.6,1.46398]
[1732905730561,2.7901,3584.1,3583.6,4.25446]
[1732905730718,2.7901,3584.1,3583.6,1.46398]
[1732905731058,2.79001,3584.3,3583.7,2.79039]
[1732905731257,0.7672,3585.3,3583.8,3.57769815]
[1732905731558,2.789,3585.6,3584.4,0.7848]
[1732905731863,2.78909,3585.4,3584.9,0.7848]
[1732905732371,2.78932,3585.1,3585.0,0.52074876]
[1732905732737,2.7896,3584.8,3584.5,0.52074876]
[1732905732940,2.7896,3584.8,3584.6,0.52074876]